fUSD/lending_fUSD_20240117
["ID","MTS","AMOUNT","RATE_DAILY","PERIOD"]
[311904305,1705491044388,-620.01,0.00021917,2]
[311904306,1705491044398,-500.0,0.00021917,2]
[311904307,1705491044407,-503.78657047,0.00021917,2]
[311904308,1705491044417,-500.0,0.00021917,2]
[311904309,1705491044426,-500.0,0.00021917,2]
[311904310,1705491044436,-508.19111201,0.00021917,2]
[311904311,1705491044446,-300.0,0.00021917,2]
[311904312,1705491044455,-500.0,0.00021917,2]
[311904313,1705491044464,-2941.81,0.00021917,2]
[311904314,1705491044475,-500.0,0.00021917,2]
[311904315,1705491044485,-500.0,0.00021917,2]
[311904316,1705491044495,-500.0,0.00021917,2]
[311904317,1705491044505,-707.93,0.00021917,2]
[311904318,1705491044515,-500.0,0.00021917,2]
[311904319,1705491044525,-642.24,0.00021917,2]
[311904320,1705491044535,-500.0,0.00021917,2]
[311904321,1705491044545,-538.67,0.00021917,2]
[311904322,1705491044555,-500.0,0.00021917,2]
[311904323,1705491044565,-500.0,0.00021917,2]
[311904324,1705491044575,-510.55809254,0.00021917,2]
[311904325,1705491044585,-500.0,0.00021917,2]
[311904326,1705491044595,-500.0,0.00021917,2]
[311904327,1705491044604,-500.0,0.00021917,2]
[311904328,1705491044614,-500.0,0.00021917,2]
[311904329,1705491044623,-500.0,0.00021917,2]
[311904330,1705491044633,-500.0,0.00021917,2]
[311904331,1705491044643,-500.0,0.00021917,2]
[311904332,1705491044652,-500.0,0.00021917,2]
[311904333,1705491044662,-500.0,0.00021917,2]
[311904334,1705491044672,-150.0,0.00021918,2]
[311904335,1705491044682,-266.18223914,0.00021967,2]
[311904336,1705491044694,-254.98440179,0.00021967,2]
[311904337,1705491044704,-500.0,0.00022014,2]
[311904338,1705491044713,-211.58756355,0.00022189,2]
[311904339,1705491044723,-2746.0468439,0.00022189,2]
[311904340,1705491044733,-628.42706181,0.00022189,2]
[311904341,1705491044743,-2614.88594233,0.0002219,2]
[311904342,1705491044752,-300.0,0.0002219,2]
[311904343,1705491044762,-306.78929771,0.0002219,2]
[311904344,1705491044772,-500.0,0.0002219,2]
[311904345,1705491044782,-2446.69,0.0002219,2]
[311904346,1705491044792,-720.74,0.00022191,2]
[311904347,1705491044801,-567.47471469,0.00022191,2]
[311904348,1705491044811,-500.0,0.00022191,2]
[311904349,1705491044820,-500.0,0.00022191,2]
[311904350,1705491044830,-500.0,0.00022191,2]
[311904351,1705491044840,-925.18,0.00022191,2]
[311904352,1705491044850,-500.0,0.00022191,2]
[311904353,1705491045197,-529.36,0.00022191,2]
[311904354,1705491045206,-500.0,0.00022191,2]
[311904355,1705491045216,-240.36,0.00022191,2]
[311904356,1705491045225,-500.0,0.00022191,2]
[311904357,1705491045235,-518.88,0.00022191,2]
[311904358,1705491045244,-500.0,0.00022191,2]
[311904359,1705491045253,-500.0,0.00022191,2]
[311904360,1705491045263,-632.65,0.00022191,2]
[311904361,1705491045272,-572.15,0.00022191,2]
[311904362,1705491045281,-245.11,0.00022191,2]
[311904363,1705491045291,-262.3811204,0.00022191,2]
[311904364,1705491045300,-500.0,0.00022191,2]
[311904365,1705491045309,-592.47,0.00022191,2]
[311904366,1705491045318,-227.92,0.00022191,2]
[311904367,1705491045328,-185.19,0.00022191,2]
[311904368,1705491045338,-500.0,0.00022191,2]
[311904370,1705491045348,-500.0,0.00022191,2]
[311904372,1705491045356,-500.0,0.00022191,2]
[311904374,1705491045365,-500.0,0.00022191,2]
[311904375,1705491045375,-500.0,0.00022191,2]
[311904376,1705491045384,-509.00353032,0.00022191,2]
[311904377,1705491045394,-500.0,0.00022191,2]
[311904378,1705491045404,-546.9,0.00022191,2]
[311904379,1705491045413,-439.57,0.00022191,2]
[311904380,1705491045422,-500.0,0.00022191,2]
[311904381,1705491045431,-508.21,0.00022191,2]
[311904382,1705491045441,-500.0,0.00022191,2]
[311904383,1705491045450,-500.0,0.00022191,2]
[311904384,1705491045459,-500.0,0.00022191,2]
[311904385,1705491045469,-500.0,0.00022191,2]
[311904386,1705491045479,-500.0,0.00022191,2]
[311904387,1705491045488,-500.0,0.00022191,2]
[311904388,1705491045498,-566.2,0.00022191,2]
[311904389,1705491045507,-500.0,0.00022191,2]
[311904390,1705491045516,-500.0,0.00022191,2]
[311904391,1705491045526,-212.39,0.00022191,2]
[311904392,1705491045535,-500.0,0.00022191,2]
[311904393,1705491045545,-500.0,0.00022191,2]
[311904394,1705491045554,-500.0,0.00022191,2]
[311904395,1705491045563,-571.66,0.00022191,2]
[311904396,1705491045573,-500.0,0.00022191,2]
[311904397,1705491045582,-500.0,0.00022191,2]
[311904398,1705491045592,-500.0,0.00022191,2]
[311904399,1705491045601,-1126.63,0.00022191,2]
[311904400,1705491045611,-500.0,0.00022191,2]
[311904401,1705491045620,-500.0,0.00022191,2]
[311904402,1705491045631,-500.0,0.00022191,2]
[311904403,1705491045641,-500.0,0.00022191,2]
[311904404,1705491045651,-500.0,0.00022191,2]
[311904405,1705491045660,-500.0,0.00022191,2]
[311904406,1705491045670,-500.0,0.00022191,2]
[311904407,1705491045680,-437.12,0.00022191,2]
[311904408,1705491045689,-195.07,0.00022191,2]
[311904409,1705491045703,-322.23,0.00022191,2]
[311904410,1705491045712,-500.0,0.00022191,2]
[311904411,1705491045722,-399.61,0.00022191,2]
[311904412,1705491045732,-500.0,0.00022191,2]
[311904413,1705491045742,-601.93,0.00022191,2]
[311904414,1705491045752,-323.45045551,0.00022191,2]
[311904415,1705491045763,-617.39,0.00022191,2]
[311904416,1705491045772,-388.02,0.00022191,2]
[311904417,1705491045782,-295.25,0.00022191,2]
[311904418,1705491045792,-565.06,0.00022191,2]
[311904419,1705491045801,-500.0,0.00022191,2]
[311904420,1705491045810,-500.0,0.00022191,2]
[311904421,1705491045820,-500.0,0.00022191,2]
[311904422,1705491045829,-500.0,0.00022191,2]
[311904423,1705491045839,-500.0,0.00022191,2]
[311904424,1705491045849,-500.0,0.00022191,2]
[311904425,1705491045858,-157.14,0.00022191,2]
[311904426,1705491045868,-500.0,0.00022191,2]
[311904427,1705491045878,-989.91,0.00022191,2]
[311904428,1705491045887,-500.0,0.00022191,2]
[311904429,1705491045896,-500.0,0.00022191,2]
[311904430,1705491045906,-649.67,0.00022191,2]
[311904431,1705491045916,-500.0,0.00022191,2]
[311904432,1705491045926,-1047.06,0.00022191,2]
[311904433,1705491045935,-500.0,0.00022191,2]
[311904434,1705491045945,-500.0,0.00022191,2]
[311904435,1705491045955,-500.0,0.00022191,2]
[311904436,1705491045965,-193.4,0.00022191,2]
[311904437,1705491045975,-500.0,0.00022191,2]
[311904438,1705491045984,-500.0,0.00022191,2]
[311904439,1705491045994,-372.62,0.00022191,2]
[311904440,1705491046003,-527.76,0.00022191,2]
[311904441,1705491046012,-500.0,0.00022191,2]
[311904442,1705491046021,-500.0,0.00022191,2]
[311904443,1705491046031,-766.06,0.00022191,2]
[311904444,1705491046041,-500.0,0.00022191,2]
[311904445,1705491046050,-500.0,0.00022191,2]
[311904446,1705491046059,-248.92,0.00022191,2]
[311904447,1705491046068,-298.29,0.00022191,2]
[311904448,1705491046078,-500.0,0.00022191,2]
[311904449,1705491046087,-500.0,0.00022191,2]
[311904450,1705491046097,-500.0,0.00022191,2]
[311904451,1705491046106,-172.24,0.00022191,2]
[311904452,1705491046115,-385.61,0.00022191,2]
[311904453,1705491046124,-483.53,0.00022191,2]
[311904454,1705491046134,-500.0,0.00022191,2]
[311904455,1705491046143,-299.55,0.00022191,2]
[311904456,1705491046153,-634.53,0.00022191,2]
[311904457,1705491046162,-240.72,0.00022191,2]
[311904458,1705491046171,-500.0,0.00022191,2]
[311904459,1705491046180,-854.03,0.00022191,2]
[311904460,1705491046190,-256.20768783,0.00022191,2]
[311904461,1705491046199,-559.65,0.00022191,2]
[311904462,1705491046208,-500.0,0.00022191,2]
[311904463,1705491046217,-500.0,0.00022191,2]
[311904464,1705491046226,-500.0,0.00022191,2]
[311904465,1705491046236,-213.16,0.00022191,2]
[311904466,1705491046245,-500.0,0.00022191,2]
[311904467,1705491046255,-361.5,0.00022191,2]
[311904468,1705491046264,-500.0,0.00022191,2]
[311904469,1705491046273,-192.02,0.00022191,2]
[311904470,1705491046282,-2022.47,0.00022191,2]
[311904471,1705491046291,-615.47,0.00022191,2]
[311904472,1705491046301,-500.0,0.00022191,2]
[311904473,1705491046310,-1951.3,0.00022191,2]
[311904474,1705491046319,-500.0,0.00022191,2]
[311904475,1705491046328,-551.23,0.00022191,2]
[311904476,1705491046338,-157.97,0.00022191,2]
[311904477,1705491046347,-600.25,0.00022191,2]
[311904478,1705491046356,-500.0,0.00022191,2]
[311904479,1705491046366,-500.0,0.00022191,2]
[311904480,1705491046375,-500.0,0.00022191,2]
[311904481,1705491046385,-500.0,0.00022191,2]
[311904482,1705491046394,-500.0,0.00022191,2]
[311904483,1705491046404,-500.0,0.00022191,2]
[311904484,1705491046413,-500.0,0.00022191,2]
[311904485,1705491046422,-287.69,0.00022191,2]
[311904486,1705491046432,-500.0,0.00022191,2]
[311904487,1705491046441,-500.0,0.00022191,2]
[311904488,1705491046451,-205.41,0.00022191,2]
[311904489,1705491046460,-500.0,0.00022191,2]
[311904490,1705491046470,-185.53,0.00022191,2]
[311904491,1705491046479,-282.39,0.00022191,2]
[311904492,1705491046489,-198.05,0.00022191,2]
[311904493,1705491046499,-935.03,0.00022191,2]
[311904494,1705491046508,-500.0,0.00022191,2]
[311904495,1705491046518,-500.0,0.00022191,2]
[311904496,1705491046528,-500.0,0.00022191,2]
[311904497,1705491046537,-374.61,0.00022191,2]
[311904498,1705491046547,-500.0,0.00022191,2]
[311904499,1705491046557,-500.0,0.00022191,2]
[311904500,1705491046566,-500.0,0.00022191,2]
[311904501,1705491046575,-500.0,0.00022191,2]
[311904502,1705491046585,-500.0,0.00022191,2]
[311904503,1705491046594,-500.0,0.00022191,2]
[311904504,1705491046603,-500.0,0.00022191,2]
[311904505,1705491046613,-500.0,0.00022191,2]
[311904506,1705491046622,-500.0,0.00022191,2]
[311904507,1705491046632,-589.61,0.00022191,2]
[311904508,1705491046641,-503.65,0.00022191,2]
[311904509,1705491046651,-500.0,0.00022191,2]
[311904510,1705491046661,-331.6,0.00022191,2]
[311904511,1705491046670,-500.0,0.00022191,2]
[311904512,1705491046679,-152.53,0.00022191,2]
[311904513,1705491046688,-500.0,0.00022191,2]
[311904514,1705491046700,-1610.2,0.00022191,2]
[311904515,1705491046712,-500.0,0.00022191,2]
[311904516,1705491046721,-184.84,0.00022191,2]
[311904517,1705491046731,-1055.02,0.00022191,2]
[311904518,1705491046741,-1394.63,0.00022191,2]
[311904519,1705491046752,-500.0,0.00022191,2]
[311904520,1705491046761,-500.0,0.00022191,2]
[311904521,1705491046772,-500.0,0.00022191,2]
[311904522,1705491046782,-500.0,0.00022191,2]
[311904523,1705491046791,-500.0,0.00022191,2]
[311904524,1705491046801,-500.0,0.00022191,2]
[311904525,1705491046810,-500.0,0.00022191,2]
[311904526,1705491046820,-465.89,0.00022191,2]
[311904527,1705491046831,-594.97,0.00022191,2]
[311904528,1705491046840,-500.0,0.00022191,2]
[311904529,1705491046850,-500.0,0.00022191,2]
[311904530,1705491046859,-521.00023891,0.00022191,2]
[311904531,1705491046869,-500.0,0.00022191,2]
[311904532,1705491046878,-500.0,0.00022191,2]
[311904533,1705491046887,-500.0,0.00022191,2]
[311904534,1705491046896,-500.0,0.00022191,2]
[311904535,1705491046906,-500.0,0.00022191,2]
[311904536,1705491046916,-500.0,0.00022191,2]
[311904537,1705491046927,-500.0,0.00022191,2]
[311904538,1705491046937,-644.11,0.00022191,2]
[311904539,1705491046948,-500.0,0.00022191,2]
[311904540,1705491046957,-500.0,0.00022191,2]
[311904541,1705491046967,-500.0,0.00022191,2]
[311904542,1705491046976,-500.0,0.00022191,2]
[311904543,1705491046985,-500.0,0.00022191,2]
[311904544,1705491046994,-185.86,0.00022191,2]
[311904545,1705491047004,-331.28,0.00022191,2]
[311904546,1705491047014,-372.57,0.00022191,2]
[311904547,1705491047023,-500.0,0.00022191,2]
[311904548,1705491047034,-500.0,0.00022191,2]
[311904549,1705491047043,-500.0,0.00022191,2]
[311904550,1705491047053,-500.0,0.00022191,2]
[311904551,1705491047062,-269.03,0.00022191,2]
[311904552,1705491047071,-500.0,0.00022191,2]
[311904553,1705491047080,-617.87,0.00022191,2]
[311904554,1705491047089,-500.0,0.00022191,2]
[311904555,1705491047099,-500.0,0.00022191,2]
[311904556,1705491047108,-500.0,0.00022191,2]
[311904557,1705491047117,-500.0,0.00022191,2]
[311904558,1705491047126,-330.89,0.00022191,2]
[311904559,1705491047135,-500.0,0.00022191,2]
[311904560,1705491047144,-508.4057453,0.00022191,2]
[311904561,1705491047154,-500.0,0.00022191,2]
[311904562,1705491047164,-454.37,0.00022191,2]
[311904563,1705491047173,-500.0,0.00022191,2]
[311904564,1705491047182,-462.94,0.00022191,2]
[311904565,1705491047191,-500.0,0.00022191,2]
[311904566,1705491047201,-500.0,0.00022191,2]
[311904567,1705491047210,-500.0,0.00022191,2]
[311904568,1705491047220,-322.11,0.00022191,2]
[311904569,1705491047229,-500.0,0.00022191,2]
[311904570,1705491047238,-1080.69,0.00022191,2]
[311904571,1705491047248,-500.0,0.00022191,2]
[311904572,1705491047257,-1459.14,0.00022191,2]
[311904573,1705491047267,-500.0,0.00022191,2]
[311904574,1705491047276,-602.8,0.00022191,2]
[311904575,1705491047285,-500.0,0.00022191,2]
[311904576,1705491047295,-565.16,0.00022191,2]
[311904577,1705491047304,-1800.52,0.00022191,2]
[311904578,1705491047313,-532.79,0.00022191,2]
[311904579,1705491047323,-398.35,0.00022191,2]
[311904580,1705491047333,-212.78,0.00022191,2]
[311904581,1705491047342,-500.0,0.00022191,2]
[311904582,1705491047352,-636.47,0.00022191,2]
[311904583,1705491047361,-500.0,0.00022191,2]
[311904584,1705491047371,-500.0,0.00022191,2]
[311904585,1705491047380,-500.0,0.00022191,2]
[311904586,1705491047389,-336.27,0.00022191,2]
[311904587,1705491047399,-500.0,0.00022191,2]
[311904588,1705491047408,-500.0,0.00022191,2]
[311904589,1705491047417,-1033.23,0.00022191,2]
[311904590,1705491047426,-500.0,0.00022191,2]
[311904591,1705491047435,-500.0,0.00022191,2]
[311904592,1705491047445,-577.66,0.00022191,2]
[311904593,1705491047454,-500.0,0.00022191,2]
[311904594,1705491047463,-1604.59,0.00022191,2]
[311904595,1705491047473,-500.0,0.00022191,2]
[311904596,1705491047482,-4555.16,0.00022191,2]
[311904597,1705491047492,-500.0,0.00022191,2]
[311904598,1705491047556,-500.0,0.00022191,2]
[311904599,1705491047566,-205.28,0.00022191,2]
[311904600,1705491047575,-660.71,0.00022191,2]
[311904601,1705491047585,-517.46,0.00022191,2]
[311904602,1705491047594,-500.0,0.00022191,2]
[311904603,1705491047604,-500.0,0.00022191,2]
[311904604,1705491047613,-545.35,0.00022191,2]
[311904605,1705491047622,-500.0,0.00022191,2]
[311904606,1705491047631,-455.64,0.00022191,2]
[311904607,1705491047640,-648.2,0.00022191,2]
[311904608,1705491047649,-500.0,0.00022191,2]
[311904609,1705491047658,-500.0,0.00022191,2]
[311904610,1705491047668,-414.57,0.00022191,2]
[311904611,1705491047677,-541.55,0.00022191,2]
[311904612,1705491047686,-301.61,0.00022191,2]
[311904613,1705491047697,-500.0,0.00022191,2]
[311904614,1705491047708,-500.0,0.00022191,2]
[311904615,1705491047718,-500.0,0.00022191,2]
[311904616,1705491047730,-500.0,0.00022191,2]
[311904617,1705491047739,-17619.33,0.00022191,2]
[311904618,1705491047749,-511.96,0.00022191,2]
[311904619,1705491047761,-500.0,0.00022191,2]
[311904620,1705491047770,-500.0,0.00022191,2]
[311904621,1705491047780,-500.0,0.00022191,2]
[311904622,1705491047789,-312.76,0.00022191,2]
[311904623,1705491047798,-958.11,0.00022191,2]
[311904624,1705491047807,-500.0,0.00022191,2]
[311904625,1705491047816,-1051.77,0.00022191,2]
[311904626,1705491047825,-456.2,0.00022191,2]
[311904627,1705491047834,-500.0,0.00022191,2]
[311904628,1705491047842,-500.0,0.00022191,2]
[311904629,1705491047853,-500.0,0.00022191,2]
[311904630,1705491047862,-500.0,0.00022191,2]
[311904631,1705491047872,-564.29,0.00022191,2]
[311904632,1705491047881,-242.9,0.00022191,2]
[311904633,1705491047890,-500.0,0.00022191,2]
[311904634,1705491047899,-500.0,0.00022191,2]
[311904635,1705491047907,-799.67,0.00022191,2]
[311904636,1705491047917,-500.0,0.00022191,2]
[311904637,1705491047926,-151.35,0.00022191,2]
[311904638,1705491047935,-500.0,0.00022191,2]
[311904639,1705491047944,-584.57,0.00022191,2]
[311904640,1705491047953,-500.0,0.00022191,5]
[311904641,1705491047962,-500.0,0.00022191,2]
[311904642,1705491047971,-500.0,0.00022191,2]
[311904643,1705491047981,-412.57,0.00022191,2]
[311904644,1705491047990,-500.0,0.00022191,2]
[311904645,1705491047999,-304.52,0.00022191,2]
[311904646,1705491048008,-500.0,0.00022191,2]
[311904647,1705491048017,-500.0,0.00022191,2]
[311904648,1705491048026,-500.0,0.00022191,2]
[311904649,1705491048035,-500.0,0.00022191,2]
[311904650,1705491048045,-707.76,0.00022191,2]
[311904651,1705491048054,-500.0,0.00022191,2]
[311904652,1705491048063,-274.57,0.00022191,2]
[311904653,1705491048072,-500.0,0.00022191,2]
[311904654,1705491048080,-644.61,0.00022191,2]
[311904655,1705491048089,-500.0,0.00022191,2]
[311904656,1705491048100,-500.0,0.00022191,2]
[311904657,1705491048109,-500.0,0.00022191,2]
[311904658,1705491048118,-500.0,0.00022191,2]
[311904659,1705491048127,-500.0,0.00022191,2]
[311904660,1705491048136,-335.08,0.00022191,2]
[311904661,1705491048145,-500.0,0.00022191,2]
[311904662,1705491048154,-206.75,0.00022191,2]
[311904663,1705491048163,-500.0,0.00022191,2]
[311904664,1705491048172,-500.0,0.00022191,2]
[311904665,1705491048181,-500.0,0.00022191,2]
[311904666,1705491048190,-509.29607139,0.00022191,2]
[311904667,1705491048199,-500.0,0.00022191,2]
[311904668,1705491048208,-620.01,0.00022191,2]
[311904669,1705491048217,-606.6,0.00022191,2]
[311904670,1705491048226,-2941.81,0.00022191,2]
[311904671,1705491048235,-575.5,0.00022191,2]
[311904672,1705491048244,-500.0,0.00022191,2]
[311904673,1705491048253,-707.93,0.00022191,2]
[311904674,1705491048262,-500.0,0.00022191,2]
[311904675,1705491048271,-199.7,0.00022191,2]
[311904676,1705491048280,-500.0,0.00022191,2]
[311904677,1705491048290,-606.89,0.00022191,2]
[311904678,1705491048299,-500.0,0.00022191,2]
[311904679,1705491048308,-500.0,0.00022191,2]
[311904680,1705491048318,-500.0,0.00022191,2]
[311904681,1705491048327,-394.95584771,0.00022238,2]
[311904682,1705491048336,-246.96938852,0.00022238,2]
[311904683,1705491048349,-239.07142493,0.00022287,2]
[311904684,1705491048359,-3035.89420502,0.00022287,3]
[311904685,1705491048368,-156.1,0.00022317,2]
[311904686,1705491048378,-172.52,0.00022447,2]
[311904687,1705491048387,-275.3318651,0.00022463,2]
[311904688,1705491048396,-314.7616955,0.00022463,2]
[311904689,1705491048406,-8560.89290265,0.00022464,2]
[311904690,1705491048416,-501.09834726,0.00022464,2]
[311904691,1705491048426,-500.0,0.00022465,2]
[311904692,1705491048436,-500.0,0.00022465,2]
[311904693,1705491048445,-500.0,0.00022465,2]
[311904694,1705491048454,-925.18,0.00022465,2]
[311904695,1705491048464,-500.0,0.00022465,2]
[311904696,1705491048474,-529.36,0.00022465,2]
[311904697,1705491048483,-500.0,0.00022465,2]
[311904698,1705491048492,-500.0,0.00022465,2]
[311904699,1705491048502,-572.15,0.00022465,2]
[311904700,1705491048511,-592.47,0.00022465,2]
[311904701,1705491048520,-192.49,0.00022465,2]
[311904702,1705491048529,-500.0,0.00022465,2]
[311904703,1705491048539,-171.31,0.00022465,2]
[311904704,1705491048548,-283.68927847,0.00022465,2]
[311904705,1705491048557,-500.0,0.00022465,2]
[311904706,1705491048567,-500.0,0.00022465,2]
[311904707,1705491048576,-582.14,0.00022465,2]
[311904708,1705491048585,-228.98,0.00022465,2]
[311904709,1705491048595,-500.0,0.00022465,2]
[311904710,1705491048606,-218.94,0.00022465,2]
[311904711,1705491048615,-500.0,0.00022465,2]
[311904712,1705491048626,-196.94,0.00022465,2]
[311904713,1705491048635,-1126.63,0.00022465,2]
[311904714,1705491048645,-500.0,0.00022465,2]
[311904715,1705491048655,-351.81,0.00022465,2]
[311904716,1705491048665,-500.0,0.00022465,2]
[311904717,1705491048674,-636.67,0.00022465,2]
[311904718,1705491048683,-601.93,0.00022465,2]
[311904719,1705491048696,-500.0,0.00022465,2]
[311904720,1705491048707,-500.0,0.00022465,2]
[311904721,1705491048716,-197.26,0.00022465,2]
[311904722,1705491048726,-500.0,0.00022465,2]
[311904723,1705491048737,-989.91,0.00022465,2]
[311904724,1705491048746,-500.0,0.00022465,2]
[311904725,1705491048754,-649.67,0.00022465,2]
[311904726,1705491048765,-209.87,0.00022465,2]
[311904727,1705491048775,-541.95,0.00022465,2]
[311904728,1705491048784,-1047.06,0.00022465,2]
[311904729,1705491048793,-500.0,0.00022465,2]
[311904730,1705491048803,-500.0,0.00022465,2]
[311904731,1705491048812,-766.06,0.00022465,2]
[311904732,1705491048821,-500.0,0.00022465,2]
[311904733,1705491048831,-500.0,0.00022465,2]
[311904734,1705491048842,-433.83,0.00022465,2]
[311904735,1705491048852,-500.0,0.00022465,2]
[311904736,1705491048863,-854.03,0.00022465,2]
[311904737,1705491048872,-154.85,0.00022465,2]
[311904738,1705491048882,-500.0,0.00022465,2]
[311904739,1705491048891,-500.0,0.00022465,2]
[311904740,1705491048900,-2022.47,0.00022465,2]
[311904741,1705491048909,-500.0,0.00022465,2]
[311904742,1705491048918,-1951.3,0.00022465,2]
[311904743,1705491048927,-500.0,0.00022465,2]
[311904744,1705491048936,-500.0,0.00022465,2]
[311904745,1705491048945,-500.0,0.00022465,2]
[311904746,1705491048955,-500.0,0.00022465,2]
[311904747,1705491048964,-210.84,0.00022465,2]
[311904748,1705491048973,-500.0,0.00022465,2]
[311904749,1705491048982,-500.0,0.00022465,2]
[311904750,1705491048991,-935.03,0.00022465,2]
[311904751,1705491049001,-500.0,0.00022465,2]
[311904752,1705491049010,-382.81,0.00022465,2]
[311904753,1705491049020,-508.33,0.00022465,2]
[311904754,1705491049029,-500.0,0.00022465,2]
[311904755,1705491049039,-203.48,0.00022465,2]
[311904756,1705491049048,-500.0,0.00022465,2]
[311904757,1705491049057,-247.13,0.00022465,2]
[311904758,1705491049066,-549.36,0.00022465,2]
[311904759,1705491049076,-500.0,0.00022465,2]
[311904760,1705491049085,-181.36,0.00022465,2]
[311904761,1705491049094,-500.0,0.00022465,2]
[311904762,1705491049104,-500.0,0.00022465,2]
[311904763,1705491049113,-500.0,0.00022465,2]
[311904764,1705491049122,-500.0,0.00022465,2]
[311904765,1705491049131,-1610.2,0.00022465,2]
[311904766,1705491049141,-500.0,0.00022465,2]
[311904767,1705491049151,-1055.02,0.00022465,2]
[311904768,1705491049160,-1394.63,0.00022465,2]
[311904769,1705491049170,-500.0,0.00022465,2]
[311904770,1705491049179,-500.0,0.00022465,2]
[311904771,1705491049188,-500.0,0.00022465,2]
[311904772,1705491049197,-434.27,0.00022465,2]
[311904773,1705491049207,-500.0,0.00022465,2]
[311904774,1705491049215,-163.75,0.00022465,2]
[311904775,1705491049225,-500.0,0.00022465,2]
[311904776,1705491049235,-500.0,0.00022465,2]
[311904777,1705491049244,-500.0,0.00022465,2]
[311904778,1705491049253,-500.0,0.00022465,2]
[311904779,1705491049263,-500.0,0.00022465,2]
[311904780,1705491049272,-500.0,0.00022465,2]
[311904781,1705491049281,-500.0,0.00022465,2]
[311904782,1705491049291,-213.7,0.00022465,2]
[311904783,1705491049300,-500.0,0.00022465,2]
[311904784,1705491049310,-500.0,0.00022465,2]
[311904785,1705491049319,-500.0,0.00022465,2]
[311904786,1705491049328,-500.0,0.00022465,2]
[311904787,1705491049338,-500.0,0.00022465,2]
[311904788,1705491049347,-500.0,0.00022465,2]
[311904789,1705491049356,-500.0,0.00022465,2]
[311904790,1705491049366,-500.0,0.00022465,2]
[311904791,1705491049375,-500.0,0.00022465,2]
[311904792,1705491049384,-500.0,0.00022465,2]
[311904793,1705491049394,-500.0,0.00022465,2]
[311904794,1705491049403,-500.0,0.00022465,2]
[311904795,1705491049413,-617.87,0.00022465,2]
[311904796,1705491049422,-229.95,0.00022465,2]
[311904797,1705491049431,-182.94,0.00022465,2]
[311904798,1705491049440,-500.0,0.00022465,2]
[311904799,1705491049449,-156.63,0.00022465,2]
[311904800,1705491049459,-500.0,0.00022465,2]
[311904801,1705491049468,-311.00380102,0.00022465,2]
[311904802,1705491049477,-234.25,0.00022465,2]
[311904803,1705491049490,-500.0,0.00022465,2]
[311904804,1705491049500,-500.0,0.00022465,2]
[311904805,1705491049509,-500.0,0.00022465,2]
[311904806,1705491049519,-1080.69,0.00022465,2]
[311904807,1705491049529,-1459.14,0.00022465,2]